[Event "Rapide Futuroscope"]
[Site "Futuroscope, France"]
[Date "2019.12.01"]
[Round "3.2"]
[White "Edouard, Romain"]
[Black "Girel, Joseph"]
[Result "1-0"]
[TimeControl "15' + 3''"]
[WhiteElo "2635"]
[BlackElo "2159"]

1. d4 {[%clk 00:15:04]} {[%emt 00:05:03]} Nf6 {[%clk 00:14:59]} {[%emt
00:00:07]} 2. c4 {[%clk 00:15:05]} {[%emt 00:00:02]} e6 {[%clk 00:14:58]}
{[%emt 00:00:04]} 3. Nc3 {[%clk 00:15:07]} {[%emt 00:00:02]} Bb4 {[%clk
00:14:38]} {[%emt 00:00:24]} 4. Nf3 {[%clk 00:15:07]} {[%emt 00:00:01]} d5
{[%clk 00:14:39]} {[%emt 00:00:05]} 5. cxd5 {[%clk 00:15:07]} {[%emt 00:00:02]}
exd5 {[%clk 00:14:39]} {[%emt 00:00:02]} 6. Bg5 {[%clk 00:15:08]} {[%emt
00:00:03]} h6 {[%clk 00:14:33]} {[%emt 00:00:08]} 7. Bh4 {[%clk 00:15:09]}
{[%emt 00:00:02]} O-O {[%clk 00:14:32]} {[%emt 00:00:04]} 8. e3 {[%clk
00:15:08]} {[%emt 00:00:03]} Bf5 {[%clk 00:14:28]} {[%emt 00:00:07]} 9. Ne5
{[%clk 00:14:45]} {[%emt 00:00:27]} c5 {[%clk 00:13:18]} {[%emt 00:01:14]} 10.
Bd3 {[%clk 00:14:37]} {[%emt 00:00:11]} Bxd3 {[%clk 00:12:07]} {[%emt
00:01:14]} 11. Nxd3 {[%clk 00:14:31]} {[%emt 00:00:09]} Bxc3+ {[%clk 00:12:04]}
{[%emt 00:00:06]} 12. bxc3 {[%clk 00:14:32]} {[%emt 00:00:02]} cxd4 {[%clk
00:09:11]} {[%emt 00:02:56]} 13. Bxf6 {[%clk 00:14:32]} {[%emt 00:00:03]} Qxf6
{[%clk 00:09:12]} {[%emt 00:00:02]} 14. cxd4 {[%clk 00:14:33]} {[%emt
00:00:02]} Nd7 {[%clk 00:08:13]} {[%emt 00:01:01]} 15. Qb3 {[%clk 00:14:29]}
{[%emt 00:00:07]} Nb6 {[%clk 00:07:48]} {[%emt 00:00:28]} 16. O-O {[%clk
00:14:30]} {[%emt 00:00:03]} Qd6 {[%clk 00:06:35]} {[%emt 00:01:15]} 17. Rfc1
{[%clk 00:14:15]} {[%emt 00:00:18]} Rfc8 {[%clk 00:05:19]} {[%emt 00:01:19]} 18.
a4 {[%clk 00:14:11]} {[%emt 00:00:07]} Nc4 {[%clk 00:04:41]} {[%emt 00:00:41]}
19. Qb4 {[%clk 00:13:50]} {[%emt 00:00:24]} Rd8 {[%clk 00:03:40]} {[%emt
00:01:04]} 20. Rc3 {[%clk 00:13:21]} {[%emt 00:00:31]} a6 {[%clk 00:02:15]}
{[%emt 00:01:29]} 21. a5 {[%clk 00:13:04]} {[%emt 00:00:20]} b5 {[%clk
00:01:20]} {[%emt 00:00:58]} 22. axb6 {[%clk 00:12:58]} {[%emt 00:00:09]} Nxb6
{[%clk 00:01:05]} {[%emt 00:00:18]} 23. Rc5 {[%clk 00:12:28]} {[%emt 00:00:33]}
g5 {[%clk 00:00:25]} {[%emt 00:00:43]} 24. h3 {[%clk 00:12:16]} {[%emt
00:00:15]} Nc4 {[%clk 00:00:21]} {[%emt 00:00:07]} 25. Qa4 {[%clk 00:11:42]}
{[%emt 00:00:38]} a5 {[%clk 00:00:16]} {[%emt 00:00:07]} 26. Rc6 {[%clk
00:11:40]} {[%emt 00:00:04]} Qd7 {[%clk 00:00:07]} {[%emt 00:00:13]} 27. Nc5
{[%clk 00:11:32]} {[%emt 00:00:11]} Qe8 {[%clk 00:00:04]} {[%emt 00:00:06]} 28.
Rxh6 {[%clk 00:11:29]} {[%emt 00:00:05]} Qxa4 {[%clk 00:00:06]} {[%emt
00:00:01]} 29. Rxa4 {[%clk 00:11:31]} {[%emt 00:00:01]} Rdb8 {[%clk 00:00:05]}
{[%emt 00:00:04]} 30. Ra1 {[%clk 00:11:05]} {[%emt 00:00:29]} Rb4 {[%clk
00:00:05]} {[%emt 00:00:03]} 31. Na6 {[%clk 00:10:59]} {[%emt 00:00:08]} Rb2
{[%emt 00:00:06]} 32. Nc7 {[%clk 00:10:49]} {[%emt 00:00:11]} Rd8 {[%clk
00:00:06]} 33. Rc6 {[%clk 00:10:48]} {[%emt 00:00:04]} Rd7 {[%clk 00:00:05]}
{[%emt 00:00:04]} 34. Rc5 {[%clk 00:10:46]} {[%emt 00:00:05]} Kg7 {[%clk
00:00:04]} {[%emt 00:00:04]} 35. Nxd5 {[%clk 00:10:41]} {[%emt 00:00:08]} Nd2
{[%clk 00:00:05]} {[%emt 00:00:03]} 36. Nc3 {[%clk 00:09:49]} {[%emt 00:00:54]}
Nb3 {[%clk 00:00:05]} {[%emt 00:00:02]} 37. Rxg5+ {[%clk 00:09:50]} {[%emt
00:00:02]} Kf6 {[%clk 00:00:07]} {[%emt 00:00:02]} 38. Ne4+ {[%clk 00:09:33]}
{[%emt 00:00:19]} 1-0

[Event "Rapide Futuroscope"]
[Site "Futuroscope, France"]
[Date "2019.12.01"]
[Round "3.4"]
[White "Leriche, Luc"]
[Black "Tranchant, Sebastien"]
[Result "1-0"]
[TimeControl "15' + 3''"]
[WhiteElo "2167"]
[BlackElo "2304"]

1. e4 {[%clk 00:15:05]} c5 {[%clk 00:15:00]} {[%emt 00:00:06]} 2. Nf3 {[%clk
00:15:06]} {[%emt 00:00:01]} g6 {[%clk 00:14:51]} {[%emt 00:00:13]} 3. Bc4
{[%clk 00:14:36]} {[%emt 00:00:33]} Bg7 {[%clk 00:14:21]} {[%emt 00:00:33]} 4.
Nc3 {[%clk 00:13:57]} {[%emt 00:00:42]} Nc6 {[%clk 00:14:18]} {[%emt 00:00:06]}
5. a3 {[%clk 00:13:34]} {[%emt 00:00:25]} d6 {[%clk 00:14:18]} {[%emt
00:00:03]} 6. h3 {[%clk 00:13:36]} {[%emt 00:00:01]} Nf6 {[%clk 00:14:20]}
{[%emt 00:00:01]} 7. d3 {[%clk 00:13:38]} O-O {[%clk 00:14:15]} {[%emt
00:00:09]} 8. O-O {[%clk 00:13:38]} {[%emt 00:00:02]} a6 {[%clk 00:14:04]}
{[%emt 00:00:14]} 9. Bg5 {[%clk 00:13:40]} b5 {[%clk 00:13:55]} {[%emt
00:00:12]} 10. Ba2 {[%clk 00:13:31]} {[%emt 00:00:11]} Rb8 {[%clk 00:13:26]}
{[%emt 00:00:33]} 11. Qd2 {[%clk 00:13:29]} {[%emt 00:00:05]} a5 {[%clk
00:13:08]} {[%emt 00:00:21]} 12. Ne2 {[%clk 00:12:15]} {[%emt 00:01:16]} b4
{[%clk 00:12:04]} {[%emt 00:01:07]} 13. axb4 {[%clk 00:10:03]} {[%emt
00:02:16]} axb4 {[%clk 00:12:05]} {[%emt 00:00:02]} 14. Ng3 {[%clk 00:10:03]}
{[%emt 00:00:02]} Qc7 {[%clk 00:10:28]} {[%emt 00:01:40]} 15. c3 {[%clk
00:08:33]} {[%emt 00:01:33]} bxc3 {[%clk 00:06:25]} {[%emt 00:04:07]} 16. bxc3
{[%clk 00:08:35]} Rb6 {[%clk 00:06:03]} {[%emt 00:00:24]} 17. Bc4 {[%clk
00:06:15]} {[%emt 00:02:24]} Bd7 {[%clk 00:05:46]} {[%emt 00:00:19]} 18. Qf4
{[%clk 00:04:09]} {[%emt 00:02:09]} Ne5 {[%clk 00:04:57]} {[%emt 00:00:53]} 19.
Nxe5 {[%clk 00:03:47]} {[%emt 00:00:25]} dxe5 {[%clk 00:04:59]} {[%emt
00:00:01]} 20. Qh4 {[%clk 00:03:49]} {[%emt 00:00:02]} Be6 {[%clk 00:05:01]}
{[%emt 00:00:01]} 21. f4 {[%clk 00:01:33]} {[%emt 00:02:19]} Bxc4 {[%clk
00:02:35]} {[%emt 00:02:29]} 22. dxc4 {[%clk 00:01:35]} exf4 {[%clk 00:02:25]}
{[%emt 00:00:14]} 23. Bxf4 {[%clk 00:01:34]} {[%emt 00:00:04]} Qd7 {[%clk
00:02:24]} {[%emt 00:00:04]} 24. e5 {[%clk 00:01:19]} {[%emt 00:00:19]} Ne8
{[%clk 00:02:23]} {[%emt 00:00:04]} 25. Rad1 {[%clk 00:01:01]} {[%emt
00:00:21]} Qe6 {[%clk 00:02:20]} {[%emt 00:00:05]} 26. Ne4 {[%clk 00:00:55]}
{[%emt 00:00:10]} Qxc4 {[%clk 00:02:03]} {[%emt 00:00:21]} 27. Bg5 {[%clk
00:00:33]} {[%emt 00:00:24]} Qe2 {[%clk 00:01:13]} {[%emt 00:00:52]} 28. Rde1
{[%clk 00:00:23]} {[%emt 00:00:16]} Qc2 {[%clk 00:01:02]} {[%emt 00:00:14]} 29.
Bxe7 {[%clk 00:00:24]} {[%emt 00:00:02]} Rb2 {[%clk 00:01:03]} {[%emt
00:00:02]} 30. Rf2 {[%clk 00:00:24]} {[%emt 00:00:03]} Qb3 {[%clk 00:00:35]}
{[%emt 00:00:31]} 31. Rxb2 {[%clk 00:00:21]} {[%emt 00:00:06]} Qxb2 {[%clk
00:00:37]} {[%emt 00:00:01]} 32. Bxf8 {[%clk 00:00:23]} {[%emt 00:00:02]} Kxf8
{[%clk 00:00:31]} {[%emt 00:00:09]} 33. Nf6 {[%clk 00:00:13]} {[%emt 00:00:12]}
Qxc3 {[%clk 00:00:21]} {[%emt 00:00:13]} 34. Nxh7+ {[%clk 00:00:08]} {[%emt
00:00:09]} Kg8 {[%clk 00:00:24]} 35. Ng5 {[%clk 00:00:07]} {[%emt 00:00:04]}
Nc7 {[%clk 00:00:17]} {[%emt 00:00:11]} 36. Rf1 {[%clk 00:00:06]} {[%emt
00:00:04]} Qd4+ {[%clk 00:00:11]} {[%emt 00:00:08]} 37. Qxd4 {[%emt 00:00:02]}
cxd4 38. Rxf7 {[%clk 00:00:08]} {[%emt 00:00:02]} Bxe5 {[%clk 00:00:15]} {[%emt
00:00:02]} 39. Re7 {[%clk 00:00:06]} {[%emt 00:00:04]} Bf6 {[%clk 00:00:16]}
{[%emt 00:00:02]} 40. Rxc7 Bxg5 {[%clk 00:00:18]} 41. Rd7 {[%clk 00:00:06]}
{[%emt 00:00:04]} Bf6 {[%clk 00:00:21]} 42. Kf2 {[%clk 00:00:06]} {[%emt
00:00:03]} Kf8 {[%clk 00:00:23]} {[%emt 00:00:01]} 43. Ke2 {[%emt 00:00:03]}
Ke8 44. Rd5 {[%clk 00:00:08]} Kf7 {[%clk 00:00:28]} 45. g4 {[%clk 00:00:09]}
{[%emt 00:00:02]} Ke6 {[%clk 00:00:30]} 46. Rb5 {[%clk 00:00:10]} {[%emt
00:00:02]} Bh4 {[%clk 00:00:15]} {[%emt 00:00:18]} 47. Rb6+ {[%clk 00:00:09]}
{[%emt 00:00:04]} Kf7 {[%clk 00:00:10]} {[%emt 00:00:08]} 48. Rd6 {[%clk
00:00:11]} Bf6 {[%clk 00:00:09]} {[%emt 00:00:03]} 49. Kd3 {[%clk 00:00:13]}
Be5 {[%clk 00:00:11]} {[%emt 00:00:01]} 50. Ra6 {[%clk 00:00:10]} {[%emt
00:00:06]} Kg7 {[%clk 00:00:13]} {[%emt 00:00:02]} 51. g5 {[%clk 00:00:08]}
{[%emt 00:00:05]} Bf4 {[%clk 00:00:14]} {[%emt 00:00:02]} 52. Ra7+ {[%clk
00:00:08]} {[%emt 00:00:03]} Kg8 {[%clk 00:00:17]} 53. Kxd4 {[%clk 00:00:08]}
{[%emt 00:00:03]} Bxg5 {[%clk 00:00:19]} 54. Ke5 {[%clk 00:00:08]} {[%emt
00:00:03]} Kf8 {[%clk 00:00:20]} {[%emt 00:00:02]} 55. Ke4 {[%clk 00:00:08]}
{[%emt 00:00:03]} Kg8 {[%clk 00:00:22]} 56. Kf3 {[%clk 00:00:10]} {[%emt
00:00:01]} Kf8 57. Kg4 {[%clk 00:00:12]} Bf6 {[%clk 00:00:27]} {[%emt
00:00:01]} 58. Rh7 {[%emt 00:00:04]} Kg8 59. Rb7 {[%clk 00:00:12]} {[%emt
00:00:01]} Kf8 {[%clk 00:00:32]} 60. h4 {[%clk 00:00:12]} {[%emt 00:00:03]} Ke8
{[%clk 00:00:30]} {[%emt 00:00:05]} 61. Ra7 {[%clk 00:00:07]} {[%emt 00:00:08]}
Kf8 {[%clk 00:00:33]} 62. Rd7 {[%clk 00:00:07]} {[%emt 00:00:03]} Ke8 {[%clk
00:00:34]} 63. Rb7 {[%clk 00:00:08]} {[%emt 00:00:03]} Kf8 {[%clk 00:00:37]} 64.
h5 {[%clk 00:00:07]} {[%emt 00:00:03]} gxh5+ {[%clk 00:00:39]} {[%emt
00:00:01]} 65. Kxh5 {[%clk 00:00:09]} Ke8 {[%clk 00:00:39]} {[%emt 00:00:02]}
66. Kg6 {[%clk 00:00:11]} {[%emt 00:00:01]} Bd4 {[%clk 00:00:40]} {[%emt
00:00:03]} 67. Kf5 {[%clk 00:00:12]} {[%emt 00:00:02]} Kd8 {[%clk 00:00:42]} 68.
Ke6 {[%clk 00:00:10]} {[%emt 00:00:05]} Kc8 {[%clk 00:00:44]} {[%emt 00:00:01]}
69. Rh7 {[%clk 00:00:11]} {[%emt 00:00:02]} Bf2 {[%clk 00:00:44]} {[%emt
00:00:03]} 70. Kd5 {[%clk 00:00:10]} {[%emt 00:00:04]} Bg3 {[%clk 00:00:44]}
{[%emt 00:00:03]} 71. Rg7 {[%clk 00:00:10]} {[%emt 00:00:03]} Bf4 {[%clk
00:00:46]} 72. Kc6 {[%clk 00:00:11]} {[%emt 00:00:02]} Kb8 {[%clk 00:00:49]}
{[%emt 00:00:01]} 73. Rg8+ {[%clk 00:00:12]} {[%emt 00:00:02]} Ka7 {[%clk
00:00:50]} {[%emt 00:00:02]} 74. Rf8 {[%clk 00:00:14]} {[%emt 00:00:01]} Bh2
{[%clk 00:00:44]} {[%emt 00:00:08]} 75. Rf2 {[%clk 00:00:14]} {[%emt 00:00:03]}
Bg3 {[%clk 00:00:43]} {[%emt 00:00:04]} 76. Rf3 {[%clk 00:00:16]} {[%emt
00:00:01]} Bh2 {[%clk 00:00:44]} {[%emt 00:00:01]} 77. Rb3 {[%clk 00:00:16]}
{[%emt 00:00:03]} Bf4 {[%clk 00:00:43]} {[%emt 00:00:04]} 78. Rb7+ {[%clk
00:00:16]} {[%emt 00:00:04]} Ka8 {[%clk 00:00:43]} {[%emt 00:00:03]} 79. Rf7
{[%clk 00:00:17]} {[%emt 00:00:02]} Bg3 {[%clk 00:00:32]} {[%emt 00:00:12]} 80.
Kb6 {[%clk 00:00:18]} {[%emt 00:00:05]} Bf2+ {[%clk 00:00:33]} {[%emt
00:00:02]} 81. Rxf2 {[%clk 00:00:19]} {[%emt 00:00:02]} 1-0

[Event "Rapide Futuroscope"]
[Site "Futuroscope, France"]
[Date "2019.12.01"]
[Round "3.3"]
[White "Voisembert, Alain"]
[Black "Sochacki, Christophe"]
[Result "0-1"]
[TimeControl "15' + 3''"]
[WhiteElo "2051"]
[BlackElo "2484"]

1. e4 {[%clk 00:15:02]} {[%emt 00:00:02]} c5 {[%clk 00:15:00]} {[%emt
00:00:07]} 2. b4 {[%clk 00:15:01]} {[%emt 00:00:05]} cxb4 {[%clk 00:14:49]}
{[%emt 00:00:14]} 3. a3 {[%clk 00:15:02]} {[%emt 00:00:03]} d5 {[%clk
00:14:42]} {[%emt 00:00:08]} 4. e5 {[%clk 00:14:48]} {[%emt 00:00:16]} Nc6
{[%clk 00:14:33]} {[%emt 00:00:12]} 5. d4 {[%clk 00:14:44]} {[%emt 00:00:07]}
Qb6 {[%clk 00:13:43]} {[%emt 00:00:52]} 6. Be3 {[%clk 00:14:04]} {[%emt
00:00:44]} Qa5 {[%clk 00:13:15]} {[%emt 00:00:31]} 7. a4 {[%clk 00:14:01]}
{[%emt 00:00:05]} Nh6 {[%clk 00:12:31]} {[%emt 00:00:47]} 8. Bd3 {[%clk
00:13:01]} {[%emt 00:01:03]} Nf5 {[%clk 00:12:23]} {[%emt 00:00:11]} 9. Nf3
{[%clk 00:13:01]} {[%emt 00:00:04]} e6 {[%clk 00:09:59]} {[%emt 00:02:26]} 10.
O-O {[%clk 00:12:49]} {[%emt 00:00:15]} Be7 {[%clk 00:09:49]} {[%emt 00:00:13]}
11. Nbd2 {[%clk 00:12:21]} {[%emt 00:00:32]} Qc7 {[%clk 00:09:00]} {[%emt
00:00:52]} 12. Nb3 {[%clk 00:11:01]} {[%emt 00:01:23]} b6 {[%clk 00:08:15]}
{[%emt 00:00:48]} 13. g4 {[%clk 00:10:30]} {[%emt 00:00:34]} Nxe3 {[%clk
00:07:50]} {[%emt 00:00:28]} 14. fxe3 {[%clk 00:10:31]} {[%emt 00:00:02]} Bb7
{[%clk 00:06:31]} {[%emt 00:01:22]} 15. Nfd2 {[%clk 00:09:51]} {[%emt
00:00:44]} f6 {[%clk 00:06:17]} {[%emt 00:00:17]} 16. exf6 {[%clk 00:08:40]}
{[%emt 00:01:14]} gxf6 {[%clk 00:06:18]} {[%emt 00:00:02]} 17. g5 {[%clk
00:08:02]} {[%emt 00:00:40]} O-O-O {[%clk 00:05:56]} {[%emt 00:00:25]} 18. gxf6
{[%clk 00:07:40]} {[%emt 00:00:26]} Bxf6 {[%clk 00:05:57]} {[%emt 00:00:02]} 19.
Nf3 {[%clk 00:06:44]} {[%emt 00:00:58]} e5 {[%clk 00:05:38]} {[%emt 00:00:22]}
20. c3 {[%clk 00:06:34]} {[%emt 00:00:14]} e4 {[%clk 00:05:34]} {[%emt
00:00:06]} 21. cxb4 {[%clk 00:06:15]} {[%emt 00:00:22]} Kb8 {[%clk 00:04:36]}
{[%emt 00:01:00]} 22. b5 {[%clk 00:05:45]} {[%emt 00:00:33]} Na5 {[%clk
00:04:35]} {[%emt 00:00:04]} 23. Nxa5 {[%clk 00:05:29]} {[%emt 00:00:19]} bxa5
{[%clk 00:04:35]} {[%emt 00:00:02]} 24. Nd2 {[%clk 00:04:59]} {[%emt 00:00:33]}
exd3 {[%clk 00:04:30]} {[%emt 00:00:09]} 25. Nb3 {[%clk 00:04:42]} {[%emt
00:00:19]} Be7 {[%clk 00:03:26]} {[%emt 00:01:07]} 26. Rc1 {[%clk 00:04:29]}
{[%emt 00:00:17]} Qb6 {[%clk 00:03:14]} {[%emt 00:00:15]} 27. Qxd3 {[%clk
00:04:14]} {[%emt 00:00:17]} Rc8 {[%clk 00:02:39]} {[%emt 00:00:38]} 28. Kh1
{[%clk 00:03:43]} {[%emt 00:00:34]} Rxc1 {[%clk 00:02:02]} {[%emt 00:00:40]} 29.
Rxc1 {[%clk 00:03:41]} {[%emt 00:00:05]} Qg6 {[%clk 00:02:03]} {[%emt
00:00:02]} 30. Qxg6 {[%clk 00:02:35]} {[%emt 00:01:09]} hxg6 {[%clk 00:02:05]}
{[%emt 00:00:01]} 31. Nxa5 {[%clk 00:02:35]} {[%emt 00:00:04]} Rh3 {[%clk
00:01:59]} {[%emt 00:00:08]} 32. Re1 {[%clk 00:02:32]} {[%emt 00:00:06]} Bb4
{[%clk 00:02:00]} {[%emt 00:00:03]} 0-1

[ePGN "0.1;DGT LiveChess/2.2.5"]

[Event "Rapide Futuroscope"]
[Site "Futuroscope, France"]
[Date "2019.12.01"]
[Round "4.5"]
[White "Salles, Louis"]
[Black "Schmit, Vincent"]
[Result "1-0"]
[TimeControl "15' + 3''"]
[WhiteElo "2206"]
[BlackElo "2194"]

1. e4 {[%clk 00:15:02]} e5 {[%clk 00:15:05]} 2. Nf3 {[%clk 00:15:02]} Nc6
{[%clk 00:15:05]} 3. d4 {[%clk 00:15:02]} exd4 {[%clk 00:15:05]} 4. Nxd4 {[%clk
00:15:02]} Nf6 {[%clk 00:15:05]} 5. Nxc6 {[%clk 00:15:02]} bxc6 {[%clk
00:15:05]} 6. e5 {[%clk 00:15:02]} Qe7 {[%clk 00:15:05]} 7. Qe2 {[%clk
00:15:02]} Nd5 {[%clk 00:15:05]} 8. c4 {[%clk 00:15:02]} Ba6 {[%clk 00:15:05]}
9. Nd2 {[%clk 00:15:02]} g6 {[%clk 00:15:05]} 10. Nf3 {[%clk 00:15:02]} Bg7
{[%clk 00:15:05]} 11. Bg5 {[%clk 00:15:02]} Qb4+ {[%clk 00:15:05]} 12. Qd2
{[%clk 00:15:02]} Qxd2+ {[%clk 00:15:05]} 13. Bxd2 {[%clk 00:15:02]} Nb6 {[%clk
00:15:05]} 14. b3 {[%clk 00:15:02]} d6 {[%clk 00:15:05]} 15. O-O-O {[%clk
00:15:02]} O-O {[%clk 00:15:05]} 16. Bf4 {[%clk 00:15:02]} d5 {[%clk 00:15:05]}
17. cxd5 {[%clk 00:15:02]} Bxf1 {[%clk 00:15:05]} 18. Rhxf1 {[%clk 00:15:02]}
cxd5 {[%clk 00:15:05]} 19. Kb1 {[%clk 00:15:02]} c5 {[%clk 00:15:05]} 20. Rc1
{[%clk 00:15:02]} Rfc8 {[%clk 00:15:05]} 21. Rfd1 {[%clk 00:15:02]} a5 {[%clk
00:15:05]} 22. Be3 {[%clk 00:15:02]} d4 {[%clk 00:15:05]} 23. Bg5 {[%clk
00:15:02]} Nd5 {[%clk 00:15:05]} 24. Bd2 {[%clk 00:15:02]} a4 {[%clk 00:15:05]}
25. Kb2 {[%clk 00:15:02]} f6 {[%clk 00:15:05]} 26. Re1 {[%clk 00:15:02]} Rab8
{[%clk 00:15:05]} 27. Kc2 {[%clk 00:15:02]} axb3+ {[%clk 00:15:05]} 28. axb3
{[%clk 00:15:02]} Ra8 {[%clk 00:15:05]} 29. Kd3 {[%clk 00:15:02]} fxe5 {[%clk
00:15:05]} 30. Nxe5 {[%clk 00:15:02]} Ra3 {[%clk 00:15:05]} 31. Rb1 {[%clk
00:15:02]} Nb6 {[%clk 00:15:05]} 32. Nc4 {[%clk 00:15:02]} Nxc4 {[%clk
00:15:05]} 33. Kxc4 {[%clk 00:15:02]} Ra2 {[%clk 00:15:05]} 34. Red1 {[%clk
00:15:02]} Rc2+ {[%clk 00:15:05]} 35. Kd3 {[%clk 00:15:02]} Ra2 {[%clk
00:15:05]} 36. Rdc1 {[%clk 00:15:02]} Ra3 {[%clk 00:15:05]} 37. Rc4 {[%clk
00:15:02]} Kf7 {[%clk 00:15:05]} 38. Bb4 {[%clk 00:15:02]} Ra2 {[%clk
00:15:05]} 39. Bxc5 {[%clk 00:15:02]} Rxf2 {[%clk 00:15:05]} 40. Bxd4 {[%clk
00:15:02]} Rd8 {[%clk 00:15:05]} 41. Rc7+ {[%clk 00:15:02]} Ke8 {[%clk
00:15:05]} 42. Rxg7 {[%clk 00:15:02]} Rf4 {[%clk 00:15:05]} 43. Re1+ {[%clk
00:15:02]} Kf8 {[%clk 00:15:05]} 44. Re4 {[%clk 00:15:02]} Rf2 {[%clk
00:15:05]} 45. Rge7 {[%clk 00:15:02]} Rxg2 {[%clk 00:15:05]} 46. Kc4 {[%clk
00:15:02]} Rxh2 {[%clk 00:15:05]} 47. Bg7+ {[%clk 00:15:02]} Kg8 {[%clk
00:15:05]} 48. Bc3 {[%clk 00:15:02]} Rc8+ {[%clk 00:15:05]} 49. Kb4 {[%clk
00:15:02]} Rh3 {[%clk 00:15:05]} 50. Re3 {[%clk 00:15:02]} Rh5 {[%clk
00:15:05]} 51. Re8+ {[%clk 00:15:02]} Rxe8 {[%clk 00:15:05]} 52. Rxe8+ {[%clk
00:15:02]} Kf7 {[%clk 00:15:05]} 53. Rh8 {[%clk 00:15:02]} Ke6 {[%clk
00:15:05]} 54. Kc4 {[%clk 00:15:02]} Rh4+ {[%clk 00:15:05]} 55. Bd4 {[%clk
00:15:02]} h5 {[%clk 00:15:05]} 1-0